Cogmind - Beta 16.1 @@@ ROGUE MODE // 2026.04.11 @ 15:58:50 Player: Elxavo Result: Destroyed by H-66 Slayer with Heavy Assault Rifle Performance ------------- Evolutions (5) 2500 Regions Visited (10) 2000 Robots Destroyed (151) 755 Value Destroyed (6216) 6216 Prototype IDs (8) 160 Alien Tech Used (0) 0 Bonus (348) 348 TOTAL SCORE: 11979 Bonus ------- High Alert Combat Kills 313 Follower Combat Kills 35 Cogmind --------- Core Integrity 0/1000 Matter 206/300 Energy 100/100 System Corruption 1% Temperature Cool (0) Movement Core (1350) Ox26 Location -5/Upper Caves Parts ------- > --- POWER (2) -------- (None) > --- PROPULSION (6) --- (None) > --- UTILITY (7) ------ Huge Storage Unit Advanced Targeting Computer > --- WEAPON (2) ------- (None) > --- INVENTORY (25) --- Angular Momentum Engine Light Fission Core Flexi-carbon Leg Improved Coolant Injector Energy Well (350) Makeshift ECM Suite Makeshift Power Shielding Improved Hacking Suite Drone Bay (2/2) Beamcaster Wave Gun Improved EM Pulse Cannon Advanced Assault Cannon Gauss Cannon Gauss Cannon Gauss Cannon Precision Grenade Launcher Plasma Flamer Power Maul Ripper Ripper Great Axe Peak State ------------ > --- POWER ------------ Fission Core Micro Fission Core > --- PROPULSION ------- Titanium Leg Thunder Leg Armored Huge Wheel Armored Huge Wheel > --- UTILITY ---------- Power Amplifier Improved Cooling System Huge Storage Unit Advanced Targeting Computer Improved Transmission Jammer Makeshift ECM Suite Dynamic Insulation System > --- WEAPON ----------- Heavy Particle Cannon Gauss Cannon > --- INVENTORY -------- Angular Momentum Engine Light Fission Core Flexi-carbon Leg Flexi-carbon Leg Makeshift Heat Sink Improved Coolant Injector Energy Well Makeshift ECM Suite Makeshift Power Shielding Improved Hacking Suite Drone Bay Arc Projector Beamcaster Improved EM Pulse Cannon Advanced Assault Cannon Gauss Cannon Gauss Cannon Heavy Rocket Launcher Precision Grenade Launcher Precision Grenade Launcher Plasma Flamer Power Maul Ripper Ripper Great Axe [Rating: 80] Favorites ----------- Power Light Nuclear Core Engine Light Deuterium Engine Power Core Light Nuclear Core Propulsion Improved Treads Treads Improved Treads Leg Aluminum Leg Wheel Armored Huge Wheel Utility Huge Storage Unit Device Improved Cooling System Storage Huge Storage Unit Processor Improved Targeting Computer Protection Hardened Medium Armor Plating Weapon Gauss Cannon Energy Gun Beamcaster Energy Cannon Heavy Ion Cannon Ballistic Gun Assault Rifle Ballistic Cannon Gauss Cannon Launcher Precision Grenade Launcher Impact Weapon Mace Build | -11 -10 -9 -9 -8 -7 -6 -6 -6 -5 -5 ------- Run | Yrd Mat Mat Sto Mat Fac Fac Low Low Fac Upp Slots Evolved 10 | . . 2 . 2 2 2 . . 2 . Power 1 | . . . . . . 1 . . . . Propulsion 4 | . . 2 . . 1 . . . 1 . Utility 5 | . . . . 2 1 1 . . 1 . Weapon . | . . . . . . . . . . . Parts Attached 104 | 7 1 7 18 10 18 26 4 4 7 2 Power 16 | 1 . . 2 2 3 5 . 2 1 . Engine 7 | 1 . . 2 1 1 2 . . . . Core 9 | . . . . 1 2 3 . 2 1 . Reactor . | . . . . . . . . . . . Propulsion 32 | 2 . 4 7 . 6 8 1 . 3 1 Treads 24 | . . 4 7 . 6 7 . . . . Leg 5 | 2 . . . . . . . . 2 1 Wheel 3 | . . . . . . 1 1 . 1 . Hover . | . . . . . . . . . . . Flight . | . . . . . . . . . . . Utility 30 | 2 1 1 3 6 7 5 1 . 3 1 Device 16 | 1 . 1 1 2 5 2 . . 3 1 Storage 3 | 1 1 . 1 . . . . . . . Processor 2 | . . . . 1 . 1 . . . . Hackware . | . . . . . . . . . . . Protection 9 | . . . 1 3 2 2 1 . . . Artifact . | . . . . . . . . . . . Weapon 26 | 2 . 2 6 2 2 8 2 2 . . Energy Gun 3 | . . . 1 . . 1 . 1 . . Energy Cannon 7 | . . 1 1 1 1 2 1 . . . Ballistic Gun 6 | 2 . 1 2 . 1 . . . . . Ballistic Cannon 4 | . . . . 1 . 2 . 1 . . Launcher 4 | . . . 1 . . 2 1 . . . Special Weapon . | . . . . . . . . . . . Impact Weapon 2 | . . . 1 . . 1 . . . . Slashing Weapon . | . . . . . . . . . . . Piercing Weapon . | . . . . . . . . . . . Special Melee Weapon . | . . . . . . . . . . . Unidentified Prototypes 6 | . . . 2 1 1 2 . . . . Parts Lost 36 | . . 5 6 1 . 6 1 1 . 16 Power 7 | . . 1 1 1 . 1 . 1 . 2 Propulsion 11 | . . 2 2 . . 2 . . . 5 Utility 11 | . . 1 2 . . 1 1 . . 6 Weapon 7 | . . 1 1 . . 2 . . . 3 Highest Loss Streak 8 | . . 3 1 1 . 3 1 1 . 8 To Critical Strikes 1 | . . . . . . . . . . 1 Average Backups 21 | 5 14 20 23 23 22 20 19 22 24 23 Power 2 | 1 3 4 2 3 1 1 2 . 1 2 Propulsion 5 | 3 6 9 8 6 4 4 3 3 2 1 Utility 6 | . 2 3 5 5 7 7 4 6 7 6 Weapon 8 | . 2 4 6 9 9 7 10 12 13 13 Tool/Special . | . . . . . . . . . . . Unused Backups 57 | 2 1 . 6 7 8 16 . . 1 16 Power 5 | . 1 . . 2 . . . . . 2 Propulsion 10 | . . . 3 . . 6 . . . 1 Utility 19 | . . . 2 2 2 8 . . . 5 Weapon 23 | 2 . . 1 3 6 2 . . 1 8 Tool/Special . | . . . . . . . . . . . Average Slot Usage (%) 94 | . 100 98 98 99 99 98 80 80 84 56 Engine 5 | . 14 10 10 7 1 5 6 . . . Core 4 | . . . . 1 5 6 6 12 11 3 Treads 27 | . . 42 43 36 38 32 6 6 1 . Leg 2 | . 28 . . . . . . . 8 3 Wheel 2 | . . . . . . . 12 13 11 6 Device 14 | . 14 11 4 12 14 18 13 13 25 20 Storage 8 | . 14 11 16 9 7 6 6 6 5 5 Processor 4 | . . . . 5 7 6 6 6 5 5 Protection 4 | . . . . 8 7 6 6 6 1 . Energy Cannon 5 | . . 8 9 8 7 5 1 1 5 4 Ballistic Gun 3 | . 28 13 5 5 . . . . . . Ballistic Cannon 4 | . . . . 3 7 5 6 5 5 1 Peak Build Rating 80 | 7 10 15 24 34 44 71 67 70 80 80 Average Rating 46 | 5 8 13 20 32 41 62 64 68 77 51 On Entrance 36 | . 7 10 12 22 33 44 60 65 68 80 Avg Prop Armor Cover (%) 5 | . . . . . . 15 4 4 8 9 Naked Turns . | . . . . . . . . . . . Heaviest Build 142 | 12 87 90 99 108 112 134 133 134 142 122 Greatest Support 150 | 20 20 86 92 92 115 150 56 56 56 56 Greatest Overweight (x) 27 | 2 4 1 1 1 . 4 2 2 2 27 Average Overweight (x) 1 | . 3 1 1 1 . . 2 2 2 2 Largest Inventory Capacity 25 | 8 25 25 25 25 25 25 25 25 25 25 Average Capacity 24 | 7 24 25 25 25 25 25 25 25 25 25 Most Carried 25 | 8 22 22 25 25 25 25 22 25 25 25 Average Carried 22 | 6 14 20 23 23 24 24 20 22 24 23 Final Capacity 25 | 8 25 25 25 25 25 25 25 25 25 25 Final Carried 25 | 8 22 21 22 25 25 24 19 25 25 22 Class Distribution -------------------- 94% | Mutant 5% | Infiltrator-Mutant Dominant Class ---------------- Mutant | -10/Materials Mutant | -9/Materials Mutant | -9/Storage Mutant | -8/Materials Mutant | -7/Factory Mutant | -6/Factory Mutant | -6/Lower Caves Mutant | -6/Lower Caves Infiltrator-Mutant | -5/Factory Infiltrator-Mutant | -5/Upper Caves Resources | -11 -10 -9 -9 -8 -7 -6 -6 -6 -5 -5 ----------- Run | Yrd Mat Mat Sto Mat Fac Fac Low Low Fac Upp Matter Collected 3695 | 334 139 284 437 312 500 837 221 482 149 . Remotely . | . . . . . . . . . . . Salvage Created 5466 | 113 28 558 1175 695 992 1396 76 196 172 65 Parts 327 | 8 1 39 75 39 48 101 . 2 10 4 Haulers Intercepted 1 | . . . . 1 . . . . . . Recyclers Shooed 4 | . . . . . 2 2 . . . . Parts Field Recycled . | . . . . . . . . . . . Retrieved Matter . | . . . . . . . . . . . Parts Self-Destructed 4 | . . . . . . . . . . 4 Prevented . | . . . . . . . . . . . Parts Restored . | . . . . . . . . . . . Kills | -11 -10 -9 -9 -8 -7 -6 -6 -6 -5 -5 ------- Run | Yrd Mat Mat Sto Mat Fac Fac Low Low Fac Upp Combat Hostiles Destroyed 128 | . . 8 35 16 19 37 4 3 4 2 Melee 1 | . . . 1 . . . . . . . Guns 11 | . . 3 8 . . . . . . . Cannons 95 | . . 4 19 14 19 29 4 2 4 . AOE 15 | . . . 4 2 . 6 . 1 . 2 Classes Destroyed 16 | 2 1 4 3 1 2 2 . 1 . . Worker 5 | . . 2 . . . 3 . . . . Builder 1 | . . . 1 . . . . . . . Tunneler 4 | 3 . . . 1 . . . . . . Hauler 1 | . . . . 1 . . . . . . Recycler 4 | 1 . . . 1 2 . . . . . Operator 1 | . . 1 . . . . . . . . Watcher 7 | . 1 3 1 . . 2 . . . . Swarmer 20 | . . . 10 . . 10 . . . . Grunt 49 | . . 2 15 10 9 10 2 1 . . Duelist 2 | . . . 1 . . 1 . . . . Sentry 29 | . . 6 9 6 4 2 1 . 1 . Specialist 2 | . . . . . . 2 . . . . Hunter 6 | . . . . . 1 3 . 1 . 1 Programmer 18 | . . . . . 5 8 1 . 3 1 Heavy 1 | . . . . . . 1 . . . . Behemoth 1 | . . . . . . . . 1 . . Best Kill Streak 8 | 3 1 5 6 7 5 8 3 1 1 1 Combat Bots Only 8 | . . 4 5 5 4 8 3 1 1 1 Max Kills in Single Turn 4 | 1 1 1 3 3 2 4 1 1 1 1 Gunslinging . | . . . . . . . . . . . Exploded 3 | . . . 2 1 . 3 . 1 . 1 Melee 1 | . . . 1 . . . . . . . Uniques/NPCs Destroyed . | . . . . . . . . . . . Combat | -11 -10 -9 -9 -8 -7 -6 -6 -6 -5 -5 -------- Run | Yrd Mat Mat Sto Mat Fac Fac Low Low Fac Upp Hostile Shots Fired 1158 | . . 112 196 64 202 201 97 71 26 189 Missed 376 | . . 37 62 22 72 62 36 23 6 56 Hits 782 | . . 75 134 42 130 139 61 48 20 133 Melee 1 | . . . 1 . . . . . . . Projectile 781 | . . 75 133 42 130 139 61 48 20 133 AOE 1 | . . . 1 . . . . . . . Critical Strikes 20 | . . 1 4 1 4 2 . 1 1 6 Part Disruptions 1 | . . . . . . . . . 1 . Actively Blocked 1 | . . . . . . . . . 1 . Damage Taken 11906 | . . 1056 1730 632 1439 2600 639 1020 428 2362 Core 2006 | . . 172 190 77 178 259 86 43 49 952 Absorbed by Shields . | . . . . . . . . . . . Regen/Repaired (Parts) 370 | . . . 370 . . . . . . . Core Remaining (%) 70 | 100 100 . 9 86 74 . . 54 . . Volleys Fired 408 | 16 9 43 85 50 54 79 16 32 17 7 Largest 2 | 2 2 2 2 2 2 2 2 2 2 2 Hottest 133 | 40 40 76 133 133 108 125 115 115 115 115 Shots Fired 718 | 32 18 85 125 72 109 151 32 48 34 12 Gun 173 | 32 18 50 67 . . . . 6 . . Cannon 501 | . . 35 55 65 109 146 23 26 34 8 Launcher 44 | . . . 3 7 . 5 9 16 . 4 Special . | . . . . . . . . . . . Kinetic 373 | 32 18 50 67 20 54 76 16 22 17 1 Thermal 256 | . . . 45 45 55 70 7 10 17 7 Explosive 44 | . . . 3 7 . 5 9 16 . 4 Electromagnetic 45 | . . 35 10 . . . . . . . Robot Hit Streak 23 | 8 7 23 19 9 16 13 5 7 21 9 Robot Miss Streak 6 | 3 4 3 5 6 3 3 2 2 1 1 Penetration Max 1 | . . . . . 1 . . 1 . . Secondary Targets 1 | . . . 1 . . . . . . . Max Gunslinging Chain 1 | . . . 1 . . . . . . . Shots Hit Robots 519 | 20 11 62 101 52 81 105 17 31 29 10 Core Hits 239 | 7 4 22 43 38 32 57 9 13 10 4 Critical Kills 2 | . . . . . . 2 . . . . Critical Parts Destroyed 3 | . . 1 2 . . . . . . . Critical Strikes 18 | . . 2 2 1 5 6 1 1 . . Meltdown 2 | . . . . . . 2 . . . . Destroy 2 | . . 1 1 . . . . . . . Blast 12 | . . . . 1 5 4 1 1 . . Corrupt 1 | . . 1 . . . . . . . . Smash 1 | . . . 1 . . . . . . . Melee Attacks 10 | . . . 8 . . 2 . . . . Impact 10 | . . . 8 . . 2 . . . . Slashing . | . . . . . . . . . . . Piercing . | . . . . . . . . . . . Sneak Attacks 1 | . . . 1 . . . . . . . Combat Hostiles . | . . . . . . . . . . . Follow-up Attacks . | . . . . . . . . . . . Damage Inflicted 15245 | 185 118 1260 2440 1828 2327 3754 731 1218 880 504 Guns 1459 | 185 118 421 673 . . . . 62 . . Cannons 10895 | . . 746 1374 1407 2327 3082 435 460 880 184 Explosions 2597 | . . 88 153 421 . 623 296 696 . 320 Melee 240 | . . . 240 . . . . . . . Ramming 54 | . . 5 . . . 49 . . . . Kinetic 5778 | 185 118 421 673 445 1166 1564 335 410 426 35 Thermal 5748 | . . 88 1204 962 1161 1518 100 112 454 149 Explosive 2509 | . . . 153 421 . 623 296 696 . 320 Electromagnetic 916 | . . 746 170 . . . . . . . Impact 240 | . . . 240 . . . . . . . Slashing . | . . . . . . . . . . . Piercing . | . . . . . . . . . . . Highest Corruption 5 | . . . 1 . 5 . . . 1 1 Average Corruption 1 | . . . 1 . 4 . . . 1 1 Corruption Purged . | . . . . . . . . . . . Corruption Blocked . | . . . . . . . . . . . Effects 18 | . . . 6 . 8 . . . 1 3 Message Errors 2 | . . . 1 . 1 . . . . . Matter Fused 4 | . . . 1 . 2 . . . . 1 Heat Flow Errors 4 | . . . 1 . 2 . . . . 1 Energy Discharges 1 | . . . . . . . . . . 1 Data Loss (minor) 4 | . . . 1 . 2 . . . 1 . Data Loss (major) 1 | . . . 1 . . . . . . . Misfires 1 | . . . . . 1 . . . . . Alerts 1 | . . . 1 . . . . . . . Overload Shots . | . . . . . . . . . . . Overflow Damage 401 | . . 13 49 . 49 98 42 96 . 54 Projectiles 273 | . . 13 . . 49 39 31 96 . 45 Explosions 70 | . . . . . . 50 11 . . 9 Melee 58 | . . . 49 . . 9 . . . . Knockbacks 34 | . . . 1 1 10 12 1 3 6 . Impact 2 | . . . 1 . . 1 . . . . Kinetic 30 | . . . . 1 10 9 1 3 6 . Secondary 2 | . . . . . . 2 . . . . Self-Inflicted Damage 91 | . . 40 . . . 31 4 16 . . Shots 5 | . . 1 . . . 2 1 1 . . Rammed 2 | . . 1 . . . 1 . . . . Targets Rammed 2 | . . 1 . . . 1 . . . . Kicked . | . . . . . . . . . . . Crushed . | . . . . . . . . . . . Highest Temperature 413 | . . 96 413 199 241 69 18 45 . 199 Average Temperature 83 | . . 27 122 103 45 21 10 11 . 80 Received Heat Transfer 2952 | . . 492 624 315 483 237 162 165 18 456 Effects 4 | . . . 4 . . . . . . . Shutdowns 1 | . . . 1 . . . . . . . Energy Bleed 1 | . . . 1 . . . . . . . Interference 2 | . . . 2 . . . . . . . Siege Activations . | . . . . . . . . . . . Martial Activations . | . . . . . . . . . . . Shielding Activations . | . . . . . . . . . . . Robots Disrupted . | . . . . . . . . . . . Combat Hostiles . | . . . . . . . . . . . Robots Corrupted 5 | . . 1 3 . . 1 . . . . Combat Hostiles 4 | . . 1 3 . . . . . . . Parts Fried 9 | . . 2 6 . . 1 . . . . Impact Corruptions 3 | . . . 2 . . 1 . . . . Robots Melted 2 | . . . . . . 2 . . . . Combat Hostiles 2 | . . . . . . 2 . . . . Parts Melted 13 | . . . 2 3 2 6 . . . . Heat Transferred 7462 | . . 150 1380 1270 1665 1887 148 185 592 185 Parts Sabotaged . | . . . . . . . . . . . Parts Stolen . | . . . . . . . . . . . Parts Stripped . | . . . . . . . . . . . Power Chain Reactions 1 | . . 1 . . . . . . . . Alert | -11 -10 -9 -9 -8 -7 -6 -6 -6 -5 -5 ------- Run | Yrd Mat Mat Sto Mat Fac Fac Low Low Fac Upp Maximum Alert Level 3 | . . . 2 1 . 3 . . . . Low Security (%) 69 | 100 100 100 40 50 100 62 . . 100 . Level 1 21 | . . . 48 49 . 21 . . . . Level 2 5 | . . . 10 . . 9 . . . . Level 3 2 | . . . . . . 6 . . . . Level 4 . | . . . . . . . . . . . Level 5 . | . . . . . . . . . . . High Security . | . . . . . . . . . . . Max Security . | . . . . . . . . . . . Peak Influence 884 | 5 7 155 546 344 156 884 . . 46 . Initial 223 | . . . 53 223 137 74 . . . . Average 153 | . . 27 218 184 81 212 . . 6 . Influence Increases 4229 | 20 7 366 1104 523 587 1242 90 80 110 100 Destroy 0b10 Robot/C 2580 | . . 160 720 320 380 740 80 60 80 40 Destroy 0b10 Robot/NC 115 | 20 5 30 10 15 10 25 . . . . Destroy Leader 726 | . 2 66 182 92 120 214 10 20 20 . Allied During Kill 2 | . . . 2 . . . . . . . Successful Hack 67 | . . 2 27 . 5 31 . . 2 . Disable Machine 255 | . . . 60 45 60 90 . . . . Destroy Structure 184 | . . 3 28 51 12 82 . . 8 . Lose Combat Pursuer 300 | . . 105 75 . . 60 . . . 60 Influence Decreases 4204 | 20 7 237 703 751 736 511 694 360 110 75 Entered New Map 1009 | . . . 76 307 165 79 328 54 . . Time Decay 2924 | 20 7 187 527 434 571 381 356 296 110 35 Lost Part 231 | . . 50 60 10 . 51 10 10 . 40 Lost Ally 40 | . . . 40 . . . . . . . Squads Dispatched 31 | . . 2 6 2 5 15 . . 1 . Investigation 5 | . . 1 2 . 1 1 . . . . Extermination 13 | . . . . . 4 8 . . 1 . Reinforcement 10 | . . 1 2 2 . 5 . . . . Assault 3 | . . . 2 . . 1 . . . . Garrison . | . . . . . . . . . . . Intercept . | . . . . . . . . . . . Searches Triggered . | . . . . . . . . . . . Construction Impeded 1 | . . . . 1 . . . . . . Haulers Reinforced 1 | . . . . . . 1 . . . . Active Scanning Responses . | . . . . . . . . . . . Cargo Convoy Interrupts 1 | . . . . . . 1 . . . . Stealth | -11 -10 -9 -9 -8 -7 -6 -6 -6 -5 -5 --------- Run | Yrd Mat Mat Sto Mat Fac Fac Low Low Fac Upp Distress Signals 12 | . 1 3 4 . . 2 . . 2 . Communications Jammed 3 | . . . . . . . . . 3 . Distress Signals 3 | . . . . . . . . . 3 . Times Spotted 189 | . 4 25 52 22 19 43 4 3 8 9 Peak Tracking Total 10 | . 2 5 10 5 4 8 3 1 3 6 Tactical Retreats 16 | . . 5 4 . . 2 . . 3 2 ECM-based Alert Blocks 3 | . . . . . . . . . 3 . Traps | -11 -10 -9 -9 -8 -7 -6 -6 -6 -5 -5 ------- Run | Yrd Mat Mat Sto Mat Fac Fac Low Low Fac Upp Traps Triggered 7 | . . . 1 . 1 4 . . 1 . Indirectly . | . . . . . . . . . . . Trap Hack Attempts . | . . . . . . . . . . . Triggered . | . . . . . . . . . . . Disarmed . | . . . . . . . . . . . Reprogrammed . | . . . . . . . . . . . Reused . | . . . . . . . . . . . Traps Extracted . | . . . . . . . . . . . Installed . | . . . . . . . . . . . Triggered . | . . . . . . . . . . . Machines | -11 -10 -9 -9 -8 -7 -6 -6 -6 -5 -5 ---------- Run | Yrd Mat Mat Sto Mat Fac Fac Low Low Fac Upp Machines Disabled 17 | . . . 4 3 4 6 . . . . Max in Single Turn 1 | . . . 1 1 1 1 . . . . Garrison Access 1 | . . . . . . 1 . . . . Machines Repaired . | . . . . . . . . . . . Machines Dismantled . | . . . . . . . . . . . Machines Sabotaged . | . . . . . . . . . . . Overloaded Fab Kills . | . . . . . . . . . . . Hacking | -11 -10 -9 -9 -8 -7 -6 -6 -6 -5 -5 --------- Run | Yrd Mat Mat Sto Mat Fac Fac Low Low Fac Upp Machines Accessed 31 | . 3 2 8 2 3 10 . 1 2 . Terminals 19 | . 3 1 6 2 1 5 . . 1 . Fabricators . | . . . . . . . . . . . Repair Stations 3 | . . . 2 . 1 . . . . . Recycling Units 2 | . . . . . 1 1 . . . . Scanalyzers 5 | . . 1 . . . 3 . . 1 . Garrison Access 1 | . . . . . . 1 . . . . Total Hacks 66 | . 4 6 20 4 6 20 . 1 5 . Successful 32 | . 1 3 12 1 2 8 . 1 4 . Failed 33 | . 3 3 8 3 4 11 . . 1 . Catastrophic 4 | . . . 3 . . 1 . . . . Database Lockouts 1 | . . . . . . 1 . . . . Manual 3 | . 1 . 1 . . 1 . . . . Terminals 36 | . 4 3 10 4 3 11 . . 1 . Fabricators . | . . . . . . . . . . . Repair Stations 11 | . . . 10 . 1 . . . . . Recycling Units 3 | . . . . . 2 1 . . . . Scanalyzers 14 | . . 3 . . . 7 . . 4 . Garrison Access 1 | . . . . . . 1 . . . . Terminal Hacks 17 | . 1 2 5 1 2 5 . 1 . . Record 2 | . . . . . . 2 . . . . Part Schematic 2 | . . . 2 . . . . . . . Robot Analysis 2 | . . 1 . . . 1 . . . . Prototype ID Bank 1 | . . . . . 1 . . . . . Open Door 4 | . . . 3 . . . . 1 . . Locate Traps 2 | . . 1 . . 1 . . . . . Dispatch Records 1 | . . . . . . 1 . . . . Zone Layout 3 | . 1 . . 1 . 1 . . . . Fabricator Hacks . | . . . . . . . . . . . Repair Station Hacks 7 | . . . 7 . . . . . . . Scan Component 4 | . . . 4 . . . . . . . Repair 3 | . . . 3 . . . . . . . Recycling Unit Hacks . | . . . . . . . . . . . Scanalyzer 7 | . . 1 . . . 2 . . 4 . Insert Component 1 | . . . . . . 1 . . . . Retrieve Study 6 | . . 1 . . . 1 . . 4 . Garrison Access Hacks 1 | . . . . . . 1 . . . . Seal Access 1 | . . . . . . 1 . . . . Unauthorized Hacks . | . . . . . . . . . . . Terminals . | . . . . . . . . . . . Fabricators . | . . . . . . . . . . . Repair Stations . | . . . . . . . . . . . Recycling Units . | . . . . . . . . . . . Scanalyzers . | . . . . . . . . . . . Garrison Access . | . . . . . . . . . . . Data Cores Recovered . | . . . . . . . . . . . Used . | . . . . . . . . . . . Hacking Detections 22 | . 2 2 5 2 3 6 . . 2 . Full Trace Events 4 | . . . 3 . 1 . . . . . Feedback Events 1 | . . . 1 . . . . . . . Corruption 1 | . . . 1 . . . . . . . Feedback Blocked . | . . . . . . . . . . . Robot Schematics Acquired . | . . . . . . . . . . . Robots Built . | . . . . . . . . . . . Authchips . | . . . . . . . . . . . Time . | . . . . . . . . . . . Total Robot Build Rating . | . . . . . . . . . . . Part Schematics Acquired 2 | . . . 2 . . . . . . . Parts Built . | . . . . . . . . . . . Authchips . | . . . . . . . . . . . Time . | . . . . . . . . . . . Total Part Build Rating . | . . . . . . . . . . . Part Studies Acquired 6 | . . 1 . . . 1 . . 4 . Parts Repaired 3 | . . . 3 . . . . . . . Time 90 | . . . 90 . . . . . . . Parts Recycled . | . . . . . . . . . . . Recycled Matter . | . . . . . . . . . . . Retrieved Matter . | . . . . . . . . . . . Retrieved Components . | . . . . . . . . . . . Parts Scanalyzed 1 | . . . . . . 1 . . . . Part Schematics Acquired . | . . . . . . . . . . . Parts Damaged 1 | . . . . . . 1 . . . . Bothacking | -11 -10 -9 -9 -8 -7 -6 -6 -6 -5 -5 ------------ Run | Yrd Mat Mat Sto Mat Fac Fac Low Low Fac Upp Used RIF Installer . | . . . . . . . . . . . Robots Hacked . | . . . . . . . . . . . Non-combat . | . . . . . . . . . . . Combat . | . . . . . . . . . . . Robot Hacks Applied . | . . . . . . . . . . . Relay Couplers Released 3 | . . . . . 3 . . . . . Programmers 3 | . . . . . 3 . . . . . Fabnet Peak Effective % . | . . . . . . . . . . . Robots Rewired . | . . . . . . . . . . . Allies Hacked . | . . . . . . . . . . . Hacks Repelled . | . . . . . . . . . . . Allies | -11 -10 -9 -9 -8 -7 -6 -6 -6 -5 -5 -------- Run | Yrd Mat Mat Sto Mat Fac Fac Low Low Fac Upp Total Allies 2 | . . . 2 . . . . . . . Largest Group 2 | . . . 2 . . . . . . . Highest-Rated Group 62 | . . . 62 . . . . . . . Highest-Rated Ally 31 | . . . 31 . . . . . . . Total Orders . | . . . . . . . . . . . Ally Attacks 21 | . . . 21 . . . . . . . Total Damage 356 | . . . 356 . . . . . . . Kills 1 | . . . 1 . . . . . . . Allies Corrupted . | . . . . . . . . . . . Allies Melted . | . . . . . . . . . . . Intel | -11 -10 -9 -9 -8 -7 -6 -6 -6 -5 -5 ------- Run | Yrd Mat Mat Sto Mat Fac Fac Low Low Fac Upp Active Infowar (turns) 3460 | 27 1126 522 1026 . . . . . 653 106 Seismic 2701 | 27 1126 522 1026 . . . . . . . Jamming 590 | . . . . . . . . . 484 106 ECM 740 | . . . . . . . . . 653 87 Robot Analysis Total 2 | . . 1 . . . 1 . . . . Derelict Logs Recovered 6 | . . . . . . . 3 3 . . Drone Launches . | . . . . . . . . . . . Drone Recoveries . | . . . . . . . . . . . Exploration | -11 -10 -9 -9 -8 -7 -6 -6 -6 -5 -5 ------------- Run | Yrd Mat Mat Sto Mat Fac Fac Low Low Fac Upp Turns Passed 15654 | 185 1126 620 2313 1065 1720 5424 804 1392 653 352 Spaces Moved 6003 | 103 280 164 694 437 552 1798 557 874 327 217 Core 9 | 6 . . . . . . . . . 3 Treads 3611 | . . 164 694 437 552 1764 . . . . Legs 381 | 97 280 . . . . . . . . 4 Wheels 2002 | . . . . . . 34 557 874 327 210 Hover . | . . . . . . . . . . . Flight . | . . . . . . . . . . . Fastest Speed 50 | 50 120 200 200 200 160 160 130 130 120 105 Average Speed 171 | 117 369 229 200 200 160 168 130 130 122 148 Slowest Speed 1400 | 150 400 240 200 200 160 400 130 130 130 1400 Overloaded Moves . | . . . . . . . . . . . Propulsion Burnouts . | . . . . . . . . . . . Robots Hopped . | . . . . . . . . . . . Potential Cave-ins . | . . . . . . . . . . . Cave-ins Triggered . | . . . . . . . . . . . Exploration Rate (%) 40 | 4 53 22 75 41 18 45 63 75 8 43 Regions Visited 10 Branch Regions 4 Pre-discovered Areas 2 | . . . . . . . . 2 . . Known Exits Taken 2 | . . . . . . . 1 . 1 . Unknown Exits Taken 8 | 1 1 1 1 1 1 1 . 1 . . Scrap Searched 6 | . . . . . . . 3 3 . . Spaces Dug 2 | . . . . . . 2 . . . . Terrain Destroyed 413 | . . 2 24 53 11 93 85 104 3 38 Melee 2 | . . . . . . 2 . . . . Projectile 57 | . . . . 3 11 27 6 7 3 . AOE 354 | . . 2 24 50 . 64 79 97 . 38 Terrain Rammed . | . . . . . . . . . . . Walls Destroyed . | . . . . . . . . . . . Machines Disabled . | . . . . . . . . . . . Actions | -11 -10 -9 -9 -8 -7 -6 -6 -6 -5 -5 --------- Run | Yrd Mat Mat Sto Mat Fac Fac Low Low Fac Upp Total 10633 | 137 360 324 1464 549 1288 4046 605 1079 547 234 Wait 3829 | . 54 105 617 16 620 2048 25 158 180 6 Move 5993 | 102 279 163 693 436 551 1797 556 873 326 217 Hop . | . . . . . . . . . . . Pick Up 137 | 10 15 3 25 20 19 32 1 8 4 . Fast Attach 19 | 7 . . 2 2 2 3 . . 3 . Attach 45 | . . 6 10 4 3 12 3 1 3 3 Detach 5 | . . 2 . . 1 2 . . . . Swap 64 | . 1 1 8 6 14 24 2 6 1 1 Drop 105 | 2 2 . 16 15 24 38 2 1 5 . Fire 408 | 16 9 43 85 50 54 79 16 32 17 7 Melee 10 | . . . 8 . . 2 . . . . Ram . | . . . . . . . . . . . Kick . | . . . . . . . . . . . Crush 2 | . . 1 . . . 1 . . . . Escape Stasis 16 | . . . . . . 8 . . 8 . Rewire . | . . . . . . . . . . . Trap . | . . . . . . . . . . . Miscellaneous . | . . . . . . . . . . . Route ------- -11/Scrapyard -10/Materials (discovered 3 exits: *Mat x2 / [*Min]) -9/Materials -9/Storage -8/Materials -7/Factory -6/Factory -6/Lower Caves -6/Lower Caves -5/Factory (discovered 2 exits: *Upp x2) -5/Upper Caves History --------- Turn | Location | Event 16 | -11/Scrapyard | Discovered new exit (range 15) 186 | -11/Scrapyard | Entered Materials 187 | -10/Materials | Met a group of wandering Federalists 303 | -10/Materials | Build established: Mutant 489 | -10/Materials | Discovered new exit (range 15) 578 | -10/Materials | Discovered new exit (range 16) 1236 | -10/Materials | Discovered new exit (range 8) 1312 | -10/Materials | Entered another Materials area 1312 | -9/Materials | Evolved 2 slots: Propulsion x2 1779 | -9/Materials | Discovered new exit (range 16) 1932 | -9/Materials | Entered Storage 1944 | -9/Storage | Lost 3 parts (1p2n) 2120 | -9/Storage | Repaired Imp. Treads+ 2562 | -9/Storage | Core integrity fell below 50% 2637 | -9/Storage | Repaired Assault Rifle 2670 | -9/Storage | Repaired Imp. Treads+ 3989 | -9/Storage | Met a pair of Derelict thieves 4097 | -9/Storage | Core integrity fell below 20% 4215 | -9/Storage | Discovered new exit (range 15) 4245 | -9/Storage | Entered Materials 4245 | -8/Materials | Evolved 2 slots: Utility x2 5286 | -8/Materials | Discovered new exit (range 3) 5310 | -8/Materials | Entered Factory 5310 | -7/Factory | Evolved 2 slots: Propulsion x1, Utility x1 6990 | -7/Factory | Discovered new exit (range 14) 7030 | -7/Factory | Entered another Factory area 7030 | -6/Factory | Evolved 2 slots: Power x1, Utility x1 8474 | -6/Factory | Central database locked down 8818 | -6/Factory | Cargo convoy interrupted 11620 | -6/Factory | Destroyed 8 combat bots 11930 | -6/Factory | First assault squad dispatched 12400 | -6/Factory | Discovered new exit (range 6) 12454 | -6/Factory | Lost 3 parts (2n1w) 12454 | -6/Factory | Entered Lower Caves 12510 | -6/Lower Caves | Identified exit to Lower Caves 12957 | -6/Lower Caves | Attracted the attention of an 0b10 checkpoint 13068 | -6/Lower Caves | Learned 12 Factory zone layouts 13258 | -6/Lower Caves | Entered another Lower Caves area 13301 | -6/Lower Caves | Discovered new exit (range 5) 14131 | -6/Lower Caves | Spotted B-75 Beast 14199 | -6/Lower Caves | Destroyed B-75 Beast 14650 | -6/Lower Caves | Entered Factory 14650 | -5/Factory | Evolved 2 slots: Propulsion x1, Utility x1 14651 | -5/Factory | Identified exit to Upper Caves 15123 | -5/Factory | Build established: Infiltrator-Mutant 15303 | -5/Factory | Entered Upper Caves 15375 | -5/Upper Caves | Ambushed by research squad 15408 | -5/Upper Caves | Attracted the attention of an 0b10 checkpoint 15454 | -5/Upper Caves | Lost 7 parts (2p3n1u1w) 15624 | -5/Upper Caves | Core integrity fell below 50% 15643 | -5/Upper Caves | Core integrity fell below 20% 15655 | -5/Upper Caves | Destroyed by H-66 Slayer with Heavy Assault Rifle Last Messages --------------- 15594_ Slug penetrates Abandoned Machinery. 15599_ System corrupted: Energy discharge (-6). 15600_ Slug penetrates Abandoned Machinery. 15601_ Mak. Heat Sink destroyed. 15602_ Hvy. Particle Cannon+ destroyed. 15602_ Critical hit (Burn: +37). 15605_ Penetrated by Slug. 15606_ Arm. Huge Wheel+ destroyed. 15609_ Prc. Grenade Launcher destroyed. 15609_ Critical hit (Burn: +37). 15611_ Penetrated by Slug. 15611_ Flexi-carbon Leg destroyed. 15613_ Mak. ECM Suite destroyed. 15618_ Penetrated by Slug. 15622_ Imp. Transmission Jammer destroyed. 15623_ Penetrated by Slug. 15637_ Dynamic Insulation System destroyed. 15640_ Critical hit (Burn: +37). 15647_ Penetrated by Slug. [Achievement: 10k Club] Map ----- +----------------------------------------------------+ | ???????????????????????????????????????## #???# | | ???????????????????????????????????????## #???# | | ??????????????????????????????????????## ##???# | | ????????????????????????????????????### #????? | | ????????????????????????????????????# #????? | | ????????????????????????????????????# ### ###### | | ????????????????????????????????????###### | | ??????????????????????????????????????## | | ??????????????????????????????????????# | | ???????????????????????????############# #### | | ???????????????????????????# ## ###? # | | ???????????????????????????# ## ## #?? # | | ???????????????????????????# " ## ## ##???# | | ???????????????????????????# " ## # ###??? | | ???????????????????????????# "" #??? | | ???????????????????????????# " #?? | | ???????????????????????????# """ " ## ### #?? | | ???????????????????????????# "" "" ####?? #?? | | ???????????????????????????# "" ###??? #?? | | ???????????????????????????# h "" #???? #?? | | ???????????????????????????# "" #???? ?? | | ???????????????????????##### "" #?????##? | | ??????????????????????## ## " #???????? | | ?????????????????????## ????? | | ?????????????????????# ???? | | ?????????????????????# @ ###????? | | ???????????????????###g ## #####??????? | | ?????????????????### g #### ##??????????? | | ?????????????????# ###??## ##???????????? | | ?????????????????## ##?????# #????????????? | | ??????????????????# #??????# #????????????? | | ??????????????????# #??????### #???????????? | | ??????????????????# #?????????# #???????????? | | ?????????????????? #??????????# ##???????????? | | ????????????????? ??????????? ##????????????? | | ????????????????? ???????????###?????????????? | | ???????????????? ???????????????????????????? | | ??????????????? ##???????????????????????????? | | ??????????????? ?????????????????????????????? | | ??????????????? #?????????????????????????????? | | ??????????????? ??????????????????????????????? | | ??????????????? ??????????????????????????????? | | ???????????????? ??????????????????????????????? | | ?????????????????????????????????????????????????? | | ?????????????????????????????????????????????????? | | ?????????????????????????????????????????????????? | | ?????????????????????????????????????????????????? | | ?????????????????????????????????????????????????? | | ?????????????????????????????????????????????????? | | ?????????????????????????????????????????????????? | +----------------------------------------------------+ Best States ------------- Heat Dissipation 75 Coolant Potential 50 Energy Generation 32 Energy Capacity 370 Matter Stores 500 Matter Capacity 500 Sight Range 16 Terrain Scan Density 10 ECM Strength 2 Jamming Range 14 Power Amplification 20 EM Shielding 2 Armor Coverage 600 Evasion (%) 50 Targeting Accuracy 8 Recoil Reduction 5 Item Schematics ----------------- Arm. Wheel | -9/Storage | Hacked Melee Analysis Suite | -9/Storage | Hacked Robot Schematics ------------------ None Fabricated ------------ Nothing Repaired ---------- Imp. Treads | 7% | -9/Storage Assault Rifle | 3% | -9/Storage Imp. Treads | 16% | -9/Storage Studied --------- Imp. Treads | -9/Materials | Hacked Gauss Cannon | -6/Factory | Hacked Arm. Huge Wheel | -5/Factory | Hacked Hvy. Particle Cannon | -5/Factory | Hacked Power Maul | -5/Factory | Hacked Adv. Assault Cannon | -5/Factory | Hacked Alien Tech Used ----------------- None Achievements -------------- 10k Club Botjacking Challenges ------------ None Game ------ Seed NovaChainDeconstructor Manual? 0 Play Time 02:52:39 Cumulative 70.6 hours Start 2026.04.10 @ 21:23:44 End 2026.04.11 @ 15:58:50 Sessions 9 Manual Loads 0 Difficulty Rogue Special Mode None Game No. 90 Rogue 90 Adventurer 0 Explorer 0 Win Type - Total 0 Types 0/0/0/0/0/0/0/0/0/0 Lore% 31 Gallery% 24 Achievement% 18 Wizard Run 0 Options --------- Layout 0 ASCII 0 Keyboard 0 Movement Mouse Keybinds 0 Fullscreen 1 Font 18/SmallcapsGlow Map View 76x50 Zoom Use 0% Tactical HUD 1 Map Filters NONE Filters LOW_CONTRAST(13,24,33) Steam 1 RUN: 1ffc60af-c3f6-4af7-9c74-1ddab9a76255